fUSD/lending_fUSD_20250715
["ID","MTS","AMOUNT","RATE_DAILY","PERIOD"]
[372398570,1752623446501,-487.54,0.00021917,2]
[372398572,1752623446510,-837.77,0.00021917,2]
[372398573,1752623446520,-460.0,0.00021917,2]
[372398574,1752623446529,-460.0,0.00021917,2]
[372398575,1752623446538,-491.72270507,0.00021917,2]
[372398576,1752623446548,-1790.62,0.00021917,2]
[372398577,1752623446557,-1988.28,0.00021917,2]
[372398578,1752623446567,-460.0,0.00021917,2]
[372398579,1752623446576,-460.0,0.00021917,2]
[372398580,1752623446586,-598.03,0.00021917,2]
[372398581,1752623446595,-500.0,0.00021917,2]
[372398582,1752623446605,-1055.11,0.00021917,2]
[372398583,1752623446614,-460.0,0.00021917,2]
[372398584,1752623446624,-460.0,0.00021917,2]
[372398585,1752623446633,-1441.69,0.00021917,2]
[372398586,1752623446644,-460.0,0.00021917,2]
[372398587,1752623446655,-460.0,0.00021917,2]
[372398588,1752623446666,-460.0,0.00021917,2]
[372398589,1752623446677,-460.0,0.00021917,2]
[372398590,1752623446687,-460.0,0.00021917,2]
[372398591,1752623446696,-614.65,0.00021917,2]
[372398592,1752623446706,-767.86,0.00021917,2]
[372398593,1752623446715,-460.0,0.00021917,2]
[372398594,1752623446725,-460.0,0.00021917,2]
[372398595,1752623446735,-781.24,0.00021917,2]
[372398596,1752623446744,-2021.31,0.00021917,2]
[372398597,1752623446754,-460.0,0.00021917,2]
[372398598,1752623446764,-460.0,0.00021917,2]
[372398599,1752623446774,-460.0,0.00021917,2]
[372398600,1752623446783,-460.0,0.00021917,2]
[372398601,1752623446793,-460.0,0.00021917,2]
[372398602,1752623446803,-460.0,0.00021917,2]
[372398604,1752623446812,-486.18,0.00021917,2]
[372398605,1752623446821,-1109.87,0.00021917,2]
[372398607,1752623446831,-460.0,0.00021917,2]
[372398609,1752623446840,-460.0,0.00021917,2]
[372398610,1752623446849,-460.73,0.00021917,2]
[372398612,1752623446859,-460.0,0.00021917,2]
[372398614,1752623446868,-460.0,0.00021917,2]
[372398615,1752623446878,-209.76459502,0.00021917,2]
[372398616,1752623446887,-586.12,0.00021917,2]
[372398618,1752623446896,-460.0,0.00021917,2]
[372398620,1752623446906,-460.0,0.00021917,2]
[372398622,1752623446915,-460.0,0.00021917,2]
[372398623,1752623446924,-460.0,0.00021917,2]
[372398624,1752623446934,-460.0,0.00021917,2]
[372398625,1752623446943,-1291.2,0.00021917,2]
[372398626,1752623446952,-460.0,0.00021917,2]
[372398627,1752623446962,-779.97,0.00021917,2]
[372398628,1752623446972,-3148.24,0.00021917,2]
[372398629,1752623446984,-557.43,0.00021917,2]
[372398630,1752623446995,-460.0,0.00021917,2]
[372398631,1752623447005,-460.0,0.00021917,2]
[372398632,1752623447015,-460.0,0.00021917,2]
[372398633,1752623447025,-460.0,0.00021917,2]
[372398634,1752623447034,-460.0,0.00021917,2]
[372398635,1752623447044,-966.58,0.00021917,2]
[372398636,1752623447053,-460.0,0.00021917,2]
[372398637,1752623447064,-460.0,0.00021917,2]
[372398638,1752623447074,-460.0,0.00021917,2]
[372398639,1752623447084,-813.9,0.00021917,2]
[372398640,1752623447094,-460.0,0.00021917,2]
[372398641,1752623447103,-507.20784264,0.00021917,2]
[372398642,1752623447113,-2842.66,0.00021917,2]
[372398643,1752623447123,-460.0,0.00021917,2]
[372398644,1752623447132,-460.0,0.00021917,2]
[372398645,1752623447142,-610.7,0.00021917,2]
[372398646,1752623447151,-695.07,0.00021917,2]
[372398647,1752623447161,-460.0,0.00021917,2]
[372398648,1752623447170,-756.72,0.00021917,2]
[372398649,1752623447180,-821.31,0.00021917,2]
[372398650,1752623447189,-460.0,0.00021917,2]
[372398651,1752623447199,-341.9560027,0.00021917,2]
[372398652,1752623447208,-2265.48,0.00021917,2]
[372398653,1752623447218,-251.98779452,0.00021917,2]
[372398654,1752623447227,-460.0,0.00021917,2]
[372398655,1752623447237,-699.79,0.00021917,2]
[372398656,1752623447246,-596.47,0.00021917,2]
[372398657,1752623447256,-460.0,0.00021917,2]
[372398658,1752623447266,-460.0,0.00021917,2]
[372398659,1752623447276,-679.35,0.00021917,2]
[372398660,1752623447286,-1254.49,0.00021917,2]
[372398661,1752623447296,-460.0,0.00021917,2]
[372398662,1752623447305,-578.16,0.00021917,2]
[372398663,1752623447314,-460.0,0.00021917,2]
[372398664,1752623447323,-460.0,0.00021917,2]
[372398665,1752623447335,-990.78,0.00021917,2]
[372398666,1752623447345,-2257.29,0.00021917,2]
[372398667,1752623447354,-150.98966253,0.00021917,2]
[372398668,1752623447363,-1228.78,0.00021917,2]
[372398669,1752623447373,-460.0,0.00021917,2]
[372398670,1752623447383,-499.42348266,0.00021917,2]
[372398671,1752623447393,-460.0,0.00021917,2]
[372398672,1752623447403,-460.0,0.00021917,2]
[372398673,1752623447412,-1660.01,0.00021917,2]
[372398674,1752623447422,-460.0,0.00021917,2]
[372398675,1752623447431,-460.0,0.00021917,2]
[372398676,1752623447440,-2026.15,0.00021917,2]
[372398677,1752623447449,-2589.54,0.00021917,2]
[372398678,1752623447459,-573.23964757,0.00021917,2]
[372398679,1752623447468,-460.0,0.00021917,2]
[372398680,1752623447478,-460.0,0.00021917,2]
[372398681,1752623447487,-460.0,0.00021917,2]
[372398682,1752623447497,-460.0,0.00021917,2]
[372398683,1752623447507,-890.7,0.00021917,2]
[372398684,1752623447517,-514.15,0.00021917,2]
[372398685,1752623447526,-460.0,0.00021917,2]
[372398686,1752623447536,-460.0,0.00021917,2]
[372398687,1752623447546,-460.0,0.00021917,2]
[372398688,1752623447555,-460.0,0.00021917,2]
[372398689,1752623447564,-2670.03,0.00021917,2]
[372398690,1752623447574,-1254.99,0.00021917,2]
[372398691,1752623447584,-460.0,0.00021917,2]
[372398692,1752623447594,-460.0,0.00021917,2]
[372398693,1752623447603,-460.0,0.00021917,2]
[372398694,1752623447613,-460.0,0.00021917,2]
[372398695,1752623447623,-753.58,0.00021917,2]
[372398696,1752623447632,-460.0,0.00021917,2]
[372398697,1752623447642,-460.0,0.00021917,2]
[372398698,1752623447652,-460.0,0.00021917,2]
[372398699,1752623447661,-460.0,0.00021917,2]
[372398700,1752623447670,-500.0,0.00021917,2]
[372398701,1752623447679,-650.89,0.00021917,2]
[372398702,1752623447689,-500.0,0.00021917,2]
[372398703,1752623447698,-500.0,0.00021917,2]
[372398704,1752623447708,-460.0,0.00021917,2]
[372398705,1752623447718,-769.29,0.00021917,2]
[372398706,1752623447728,-500.0,0.00021917,2]
[372398707,1752623447738,-460.0,0.00021917,2]
[372398708,1752623447748,-460.0,0.00021917,2]
[372398709,1752623447757,-500.0,0.00021917,2]
[372398710,1752623447769,-460.0,0.00021917,2]
[372398711,1752623447779,-1286.69,0.00021917,2]
[372398712,1752623447788,-460.0,0.00021917,2]
[372398713,1752623447798,-1038.34,0.00021917,2]
[372398714,1752623447808,-500.0,0.00021917,2]
[372398715,1752623447818,-528.24,0.00021917,2]
[372398716,1752623447828,-460.0,0.00021917,2]
[372398717,1752623447838,-460.0,0.00021917,2]
[372398718,1752623447854,-924.58,0.00021917,2]
[372398719,1752623447864,-1302.89,0.00021917,2]
[372398720,1752623447874,-2095.35,0.00021917,2]
[372398721,1752623447884,-1486.05,0.00021917,2]
[372398722,1752623447893,-460.0,0.00021917,2]
[372398723,1752623447903,-460.0,0.00021917,2]
[372398724,1752623447912,-460.0,0.00021917,2]
[372398725,1752623447922,-2234.42,0.00021917,2]
[372398726,1752623447931,-1218.82,0.00021917,2]
[372398727,1752623447941,-1163.86,0.00021917,2]
[372398728,1752623447951,-539.79,0.00021917,2]
[372398729,1752623447960,-460.0,0.00021917,2]
[372398730,1752623447970,-460.0,0.00021917,2]
[372398731,1752623447981,-460.0,0.00021917,2]
[372398732,1752623447992,-460.0,0.00021917,2]
[372398733,1752623448002,-2503.08,0.00021917,2]
[372398734,1752623448012,-460.0,0.00021917,2]
[372398735,1752623448023,-2632.88,0.00021917,2]
[372398736,1752623448036,-548.56288596,0.00021917,2]
[372398737,1752623448051,-460.0,0.00021917,2]
[372398738,1752623448069,-460.0,0.00021917,2]
[372398739,1752623448084,-501.16638713,0.00021917,2]
[372398740,1752623448096,-460.0,0.00021917,2]
[372398741,1752623448108,-460.0,0.00021917,2]
[372398742,1752623448122,-460.0,0.00021917,2]
[372398743,1752623448136,-1006.49,0.00021917,2]
[372398744,1752623448150,-460.0,0.00021917,2]
[372398745,1752623448163,-460.0,0.00021917,2]
[372398746,1752623448178,-481.28,0.00021917,2]
[372398747,1752623448198,-460.0,0.00021917,2]
[372398748,1752623448213,-588.7,0.00021917,2]
[372398749,1752623448226,-1323.81,0.00021917,2]
[372398750,1752623448238,-460.0,0.00021917,2]
[372398751,1752623448250,-460.0,0.00021917,2]
[372398752,1752623448264,-1756.98,0.00021917,2]
[372398753,1752623448277,-1295.77,0.00021917,2]
[372398754,1752623448291,-468.6509372,0.00021917,2]
[372398755,1752623448304,-1557.87,0.00021917,2]
[372398756,1752623448318,-460.0,0.00021917,2]
[372398757,1752623448332,-460.0,0.00021917,2]
[372398758,1752623448345,-460.0,0.00021917,2]
[372398759,1752623448357,-2422.15,0.00021917,2]
[372398760,1752623448372,-843.63,0.00021917,2]
[372398761,1752623448385,-460.0,0.00021917,2]
[372398762,1752623448399,-277.93806796,0.00021917,2]
[372398763,1752623448411,-460.0,0.00021917,2]
[372398764,1752623448424,-460.0,0.00021917,2]
[372398765,1752623448436,-2390.93,0.00021917,2]
[372398766,1752623448450,-984.63,0.00021917,2]
[372398767,1752623448464,-460.0,0.00021917,2]
[372398768,1752623448478,-460.0,0.00021917,2]
[372398769,1752623448490,-1110.28,0.00021917,2]
[372398770,1752623448503,-460.0,0.00021917,2]
[372398771,1752623448514,-538.11,0.00021917,2]
[372398772,1752623448525,-575.34,0.00021917,2]
[372398773,1752623448536,-460.0,0.00021917,2]
[372398774,1752623448549,-462.52583876,0.00021917,2]
[372398775,1752623448564,-1754.17,0.00021917,2]
[372398776,1752623448575,-1257.21,0.00021917,2]
[372398777,1752623448586,-460.0,0.00021917,2]
[372398778,1752623448596,-663.84,0.00021917,2]
[372398779,1752623448608,-462.83,0.00021917,2]
[372398780,1752623448620,-1327.12,0.00021917,2]
[372398781,1752623448634,-1085.94,0.00021917,2]
[372398782,1752623448647,-1671.77,0.00021917,2]
[372398783,1752623448657,-460.0,0.00021917,2]
[372398784,1752623448668,-460.0,0.00021917,2]
[372398785,1752623448679,-460.0,0.00021917,2]
[372398786,1752623448691,-460.0,0.00021917,2]
[372398787,1752623448703,-460.0,0.00021917,2]
[372398788,1752623448715,-1847.31,0.00021917,2]
[372398789,1752623448726,-2760.33,0.00021917,2]
[372398790,1752623448738,-460.0,0.00021917,2]
[372398791,1752623448749,-460.0,0.00021917,2]
[372398792,1752623448761,-3607.91,0.00021917,2]
[372398793,1752623448772,-460.0,0.00021917,2]
[372398794,1752623448784,-460.0,0.00021917,2]
[372398795,1752623448796,-463.73,0.00021917,2]
[372398796,1752623448808,-658.38,0.00021917,2]
[372398797,1752623448819,-3588.39,0.00021917,2]
[372398798,1752623448830,-847.84,0.00021917,2]
[372398799,1752623448842,-460.0,0.00021917,2]
[372398800,1752623448854,-460.0,0.00021917,2]
[372398801,1752623448866,-603.37,0.00021917,2]
[372398802,1752623448878,-460.0,0.00021917,2]
[372398803,1752623448890,-460.0,0.00021917,2]
[372398804,1752623448907,-460.0,0.00021917,2]
[372398805,1752623448920,-2672.29,0.00021917,2]
[372398806,1752623448934,-535.19,0.00021917,2]
[372398807,1752623448947,-544.21,0.00021917,2]
[372398808,1752623448961,-460.0,0.00021917,2]
[372398809,1752623448975,-460.0,0.00021917,2]
[372398810,1752623448991,-1025.99,0.00021917,2]
[372398811,1752623449006,-460.0,0.00021917,2]
[372398812,1752623449020,-460.0,0.00021917,2]
[372398813,1752623449056,-460.0,0.00021917,2]
[372398814,1752623449069,-2187.17,0.00021917,2]
[372398815,1752623449082,-460.0,0.00021917,2]
[372398816,1752623449094,-460.0,0.00021917,2]
[372398817,1752623449105,-460.0,0.00021917,2]
[372398818,1752623449118,-464.76469195,0.00021917,2]
[372398819,1752623449131,-1242.88,0.00021917,2]
[372398820,1752623449143,-460.0,0.00021917,2]
[372398821,1752623449156,-2138.34,0.00021917,2]
[372398822,1752623449169,-1930.32,0.00021917,2]
[372398823,1752623449180,-1989.59,0.00021917,2]
[372398824,1752623449192,-460.0,0.00021917,2]
[372398825,1752623449205,-1364.59,0.00021917,2]
[372398826,1752623449217,-852.32,0.00021917,2]
[372398827,1752623449230,-460.0,0.00021917,2]
[372398828,1752623449242,-460.0,0.00021917,2]
[372398829,1752623449254,-1282.58,0.00021917,2]
[372398830,1752623449266,-512.6,0.00021917,2]
[372398831,1752623449278,-2199.99,0.00021917,2]
[372398832,1752623449290,-702.6,0.00021917,2]
[372398833,1752623449302,-478.22,0.00021917,2]
[372398834,1752623449314,-460.0,0.00021917,2]
[372398835,1752623449326,-460.5910847,0.00021917,2]
[372398836,1752623449338,-460.0,0.00021917,2]
[372398837,1752623449350,-2677.48,0.00021917,2]
[372398838,1752623449362,-1250.54,0.00021917,2]
[372398839,1752623449376,-544.81,0.00021917,2]
[372398840,1752623449389,-480.55,0.00021917,2]
[372398841,1752623449402,-460.0,0.00021917,2]
[372398842,1752623449413,-460.0,0.00021917,2]
[372398843,1752623449425,-460.0,0.00021917,2]
[372398844,1752623449438,-460.0,0.00021917,2]
[372398845,1752623449449,-1146.65,0.00021917,2]
[372398846,1752623449461,-460.0,0.00021917,2]
[372398847,1752623449473,-460.0,0.00021917,2]
[372398848,1752623449485,-460.0,0.00021917,2]
[372398849,1752623449498,-460.0,0.00021917,2]
[372398850,1752623449509,-1223.93,0.00021917,2]
[372398851,1752623449520,-1310.35,0.00021917,2]
[372398852,1752623449532,-460.0,0.00021917,2]
[372398853,1752623449544,-460.0,0.00021917,2]
[372398854,1752623449555,-1268.01,0.00021917,2]
[372398855,1752623449567,-758.98,0.00021917,2]
[372398856,1752623449578,-460.0,0.00021917,2]
[372398857,1752623449590,-927.46,0.00021917,2]
[372398858,1752623449601,-460.0,0.00021917,2]
[372398859,1752623449613,-704.5,0.00021917,2]
[372398860,1752623449624,-460.0,0.00021917,2]
[372398861,1752623449635,-1272.07,0.00021917,2]
[372398862,1752623449647,-460.0,0.00021917,2]
[372398863,1752623449660,-1015.45,0.00021917,2]
[372398864,1752623449673,-890.88,0.00021917,2]
[372398865,1752623449685,-2266.72,0.00021917,2]
[372398866,1752623449697,-460.0,0.00021917,2]
[372398867,1752623449708,-1154.61,0.00021917,2]
[372398868,1752623449720,-460.0,0.00021917,2]
[372398869,1752623449731,-482.30252501,0.00021917,2]
[372398870,1752623449743,-995.05,0.00021917,2]
[372398871,1752623449754,-1902.42,0.00021917,2]
[372398872,1752623449766,-3067.34,0.00021917,2]
[372398873,1752623449778,-460.0,0.00021917,2]
[372398874,1752623449789,-502.1,0.00021917,2]
[372398875,1752623449800,-650.53,0.00021917,2]
[372398876,1752623449812,-460.0,0.00021917,2]
[372398877,1752623449824,-460.0,0.00021917,2]
[372398878,1752623449835,-599.47996488,0.00021917,2]
[372398879,1752623449846,-460.0,0.00021917,2]
[372398880,1752623449857,-1166.0,0.00021917,2]
[372398881,1752623449869,-460.0,0.00021917,2]
[372398882,1752623449883,-949.85,0.00021917,2]
[372398883,1752623449895,-460.0,0.00021917,2]
[372398884,1752623449906,-460.0,0.00021917,2]
[372398885,1752623449917,-460.0,0.00021917,2]
[372398886,1752623449928,-460.0,0.00021917,2]
[372398887,1752623449939,-490.0,0.00021917,2]
[372398888,1752623449951,-867.0,0.00021917,2]
[372398889,1752623449964,-178.70120679,0.00021917,2]
[372398890,1752623449975,-502.17,0.00021917,2]
[372398891,1752623449990,-460.0,0.00021917,2]
[372398892,1752623450001,-470.03,0.00021917,2]
[372398893,1752623450012,-2155.92,0.00021917,2]
[372398894,1752623450023,-623.59,0.00021917,2]
[372398895,1752623450034,-460.0,0.00021917,2]
[372398896,1752623450045,-957.38,0.00021917,2]
[372398897,1752623450058,-1088.14,0.00021917,2]
[372398898,1752623450069,-3389.49,0.00021917,2]
[372398899,1752623450080,-2080.03,0.00021917,2]
[372398900,1752623450091,-46.23023211,0.00021917,2]
[372398901,1752623453364,500.0,0.0003013,120]
[372398902,1752623453739,-3951.08,0.00021907,2]
[372398903,1752623453749,-413.76976789,0.00021917,2]
[372398904,1752623453758,-938.07,0.00021917,2]
[372398905,1752623453768,-490.07,0.00021917,2]
[372398906,1752623453778,-478.54,0.00021917,2]
[372398907,1752623453788,-460.0,0.00021917,2]
[372398908,1752623453798,-460.0,0.00021917,2]
[372398909,1752623453808,-2939.96,0.00021917,2]
[372398910,1752623453817,-460.0,0.00021917,2]
[372398911,1752623453827,-313.53047903,0.00021917,2]
[372398912,1752623453837,-1469.81,0.00021917,2]
[372398913,1752623453846,-460.0,0.00021917,2]
[372398914,1752623453856,-460.0,0.00021917,2]
[372398915,1752623453866,-1569.52872214,0.00021917,2]
[372398916,1752623453888,-98.88127786,0.00021917,2]
[372398917,1752623453898,-643.61,0.00021917,2]
[372398918,1752623453908,-49.18228209,0.00021917,2]
[372398919,1752623453920,-760.44771791,0.00021917,2]
[372398920,1752623454037,-460.0,0.00021917,2]
[372398921,1752623454048,-460.0,0.00021917,2]
[372398922,1752623454058,-828.21,0.00021917,2]
[372398923,1752623454067,-458.28568673,0.00021917,2]
[372398924,1752623454080,-1301.18406247,0.00021917,2]
[372398925,1752623454143,-539.77650905,0.00021917,2]
[372398926,1752623454388,-264.60374175,0.00021917,2]
[372398927,1752623454398,-460.0,0.00021917,2]
[372398928,1752623454408,-608.92,0.00021917,2]
[372398929,1752623454417,-460.0,0.00021917,2]
[372398930,1752623454427,-460.0,0.00021917,2]
[372398931,1752623454436,-902.2,0.00021917,2]
[372398932,1752623454446,-460.0,0.00021917,2]
[372398933,1752623454455,-460.0,0.00021917,2]
[372398934,1752623454465,-1911.66,0.00021917,2]
[372398935,1752623454474,-1004.36,0.00021917,2]
[372398936,1752623454486,-506.76,0.00021917,2]
[372398937,1752623454495,-460.0,0.00021917,2]
[372398938,1752623454505,-1975.27,0.00021917,2]
[372398939,1752623454515,-460.0,0.00021917,2]
[372398940,1752623454524,-991.62,0.00021917,2]
[372398941,1752623454534,-764.57,0.00021917,2]
[372398942,1752623454544,-460.0,0.00021917,2]
[372398943,1752623454554,-737.13,0.00021917,2]
[372398944,1752623454563,-460.0,0.00021917,2]
[372398945,1752623454573,-460.0,0.00021917,2]
[372398946,1752623454583,-358.55063621,0.00021917,2]
[372398947,1752623454595,-639.29851046,0.00021917,2]
[372398948,1752623454607,-210.13085333,0.00021917,2]
[372398949,1752623454616,-1888.25,0.00021917,2]
[372398950,1752623454626,-2172.42,0.00021917,2]
[372398951,1752623454636,-460.0,0.00021917,2]
[372398952,1752623454645,-460.0,0.00021917,2]
[372398953,1752623454655,-239.95075663,0.00021917,2]
[372398954,1752623455595,-220.04924337,0.00021917,2]
[372398955,1752623455605,-941.54,0.00021917,2]
[372398956,1752623455614,-896.72,0.00021917,2]
[372398957,1752623455623,-460.0,0.00021917,2]
[372398958,1752623455632,-289.91802422,0.00021917,2]
[372398959,1752623455644,-170.08197578,0.00021917,2]
[372398960,1752623455653,-790.39,0.00021917,2]
[372398961,1752623455662,-790.18,0.00021917,2]
[372398962,1752623455671,-460.0,0.00021917,2]
[372398963,1752623455681,-460.0,0.00021917,2]
[372398964,1752623455691,-460.0,0.00021917,2]
[372398965,1752623455700,-1265.5,0.00021917,2]
[372398966,1752623455709,-1255.07,0.00021917,2]
[372398967,1752623455719,-460.0,0.00021917,2]
[372398968,1752623455729,-460.0,0.00021917,2]
[372398969,1752623455739,-1532.67,0.00021917,2]
[372398970,1752623455748,-460.0,0.00021917,2]
[372398971,1752623455757,-460.0,0.00021917,2]
[372398972,1752623455767,-1562.24,0.00021917,2]
[372398973,1752623455776,-460.0,0.00021917,2]
[372398974,1752623455787,-460.0,0.00021917,2]
[372398975,1752623455796,-460.0,0.00021917,2]
[372398976,1752623455806,-460.0,0.00021917,2]
[372398977,1752623455815,-460.0,0.00021917,2]
[372398978,1752623455824,-3359.07,0.00021917,2]
[372398979,1752623455834,-460.0,0.00021917,2]
[372398980,1752623455844,-460.0,0.00021917,2]
[372398981,1752623455853,-460.0,0.00021917,2]
[372398982,1752623455862,-460.0,0.00021917,2]
[372398983,1752623455872,-460.0,0.00021917,2]
[372398984,1752623455882,-460.0,0.00021917,2]
[372398985,1752623455891,-804.85,0.00021917,2]
[372398986,1752623455901,-1226.92,0.00021917,2]
[372398987,1752623455911,-460.0,0.00021917,2]
[372398988,1752623455920,-1889.81,0.00021917,2]
[372398989,1752623455930,-460.0,0.00021917,2]
[372398990,1752623455940,-1555.75,0.00021917,2]
[372398991,1752623455949,-460.0,0.00021917,2]
[372398992,1752623455959,-1643.65,0.00021917,2]
[372398993,1752623455968,-460.0,0.00021917,2]
[372398994,1752623455977,-460.0,0.00021917,2]
[372398995,1752623455991,-460.0,0.00021917,2]
[372398996,1752623456000,-460.0,0.00021917,2]
[372398997,1752623456010,-591.79,0.00021917,2]
[372398998,1752623456019,-460.0,0.00021917,2]
[372398999,1752623456029,-460.0,0.00021917,2]
[372399000,1752623456039,-460.0,0.00021917,2]
[372399001,1752623456048,-2194.64,0.00021917,2]
[372399002,1752623456058,-460.0,0.00021917,2]
[372399003,1752623456068,-1221.7,0.00021917,2]
[372399004,1752623456078,-105.68802422,0.00021917,2]
[372399005,1752623456091,-436.37197578,0.00021917,2]
[372399006,1752623456100,-6201.66,0.00021917,2]
[372399007,1752623456109,-1912.26,0.00021917,2]
[372399008,1752623456119,-1191.11,0.00021917,2]
[372399009,1752623456128,-725.52,0.00021917,2]
[372399010,1752623456137,-460.0,0.00021917,2]
[372399011,1752623456147,-460.0,0.00021917,2]
[372399012,1752623456156,-460.0,0.00021917,2]
[372399013,1752623456166,-460.0,0.00021917,2]
[372399014,1752623456175,-530.28,0.00021917,2]
[372399015,1752623456185,-468.47,0.00021917,2]
[372399016,1752623456194,-460.0,0.00021917,2]
[372399017,1752623456203,-460.0,0.00021917,2]
[372399018,1752623456213,-689.39,0.00021917,2]
[372399019,1752623456222,-460.0,0.00021917,2]
[372399020,1752623456231,-547.69,0.00021917,2]
[372399021,1752623456241,-892.07,0.00021917,2]
[372399022,1752623456250,-501.73057208,0.00021917,2]
[372399023,1752623456259,-1320.18,0.00021917,2]
[372399024,1752623456268,-460.0,0.00021917,2]
[372399025,1752623456277,-562.31,0.00021917,2]
[372399026,1752623456287,-460.0,0.00021917,2]
[372399027,1752623456296,-460.0,0.00021917,2]
[372399028,1752623456305,-500.0,0.00021917,2]
[372399029,1752623456315,-500.0,0.00021917,2]
[372399030,1752623456324,-500.0,0.00021917,2]
[372399031,1752623456333,-34.84088849,0.00021917,2]
[372399032,1752623456358,-2962.94911151,0.00021917,2]
[372399033,1752623456368,-234.1532345,0.00021917,2]
[372399034,1752623456425,-1475.4667655,0.00021917,2]
[372399035,1752623456434,-500.0,0.00021917,2]
[372399036,1752623456444,-500.0,0.00021917,2]
[372399037,1752623456454,-460.0,0.00021917,2]
[372399038,1752623456464,-500.0,0.00021917,2]
[372399039,1752623456474,-460.0,0.00021917,2]
[372399040,1752623456485,-500.0,0.00021917,2]
[372399041,1752623456494,-135.9780345,0.00021917,2]
[372399042,1752623456592,-658.6119655,0.00021917,2]
[372399043,1752623456601,-498.88,0.00021917,2]
[372399044,1752623456611,-460.0,0.00021917,2]
[372399045,1752623456620,-851.16,0.00021917,2]
[372399046,1752623456630,-460.0,0.00021917,2]
[372399047,1752623456639,-933.14,0.00021917,2]
[372399048,1752623456648,-462.48497575,0.00021917,2]
[372399049,1752623456657,-460.0,0.00021917,2]
[372399050,1752623456667,-700.17,0.00021917,2]
[372399051,1752623456676,-460.0,0.00021917,2]
[372399052,1752623456685,-460.0,0.00021917,2]
[372399053,1752623456695,-460.0,0.00021917,2]
[372399054,1752623456704,-948.02,0.00021917,2]
[372399055,1752623456713,-315.19504168,0.00021917,2]
[372399056,1752623456723,-334.39087033,0.00021917,2]
[372399057,1752623456734,-460.0,0.00021917,2]
[372399058,1752623456743,-460.0,0.00021917,2]
[372399059,1752623456753,-460.0,0.00021917,2]
[372399060,1752623456762,-742.89,0.00021917,2]
[372399061,1752623456772,-460.0,0.00021917,2]
[372399062,1752623456781,-461.31755497,0.00021917,2]
[372399063,1752623456791,-264.73959177,0.00021917,2]
[372399064,1752623562879,3000.0,0.00030137,120]
[372399065,1752623572018,3000.0,0.00030137,120]
[372399066,1752623583533,3000.0,0.00030137,120]
[372399067,1752623592783,3000.0,0.00030137,120]
[372399068,1752623600468,3000.0,0.00030137,120]
[372399069,1752623609075,3000.0,0.00030137,120]
[372399070,1752623615747,3000.0,0.00030137,120]
[372399071,1752623624406,3000.0,0.00030137,120]
[372399072,1752623631718,3000.0,0.00030137,120]
[372399073,1752623639060,3000.0,0.00030137,120]
[372399074,1752623646307,3000.0,0.00030137,120]
[372399075,1752623653383,3000.0,0.00030137,120]
[372399076,1752623662865,3000.0,0.00030137,120]
[372399077,1752623669591,3000.0,0.00030137,120]
[372399078,1752623685348,2356.04,0.00030137,120]